Cogmind - Beta 15 @@@ ROGUE MODE // 2025.09.10 @ 23:01:38 Player: the Result: Destroyed by S-27 Virus with Autogun Performance ------------- Evolutions (3) 1500 Regions Visited (7) 1400 Robots Destroyed (108) 540 Value Destroyed (3191) 3191 Prototype IDs (50) 1000 Alien Tech Used (0) 0 Bonus (364) 364 TOTAL SCORE: 7995 Bonus ------- High Alert Combat Kills 105 Follower Combat Kills 117 Aligned with FarCom 300 Friendly Fire -158 Cogmind --------- Core Integrity 0/700 Matter 198/300 Energy 100/100 System Corruption 5% Temperature Cool (0) Movement Core (50) Location -7/Lower Caves Parts ------- > --- POWER (2) -------- (None) > --- PROPULSION (4) --- (None) > --- UTILITY (4) ------ (None) > --- WEAPON (3) ------- (None) > --- INVENTORY (5) ---- High-capacity Storage Unit Graphene Brace Gatling Laser Gatling Laser Gatling Laser Peak State ------------ > --- POWER ------------ Micro Nuclear Core Micro Nuclear Core > --- PROPULSION ------- VSS Leg VSS Leg VSS Leg VSS Leg > --- UTILITY ---------- Coolant Injector Large Storage Unit Experimental Sensor Array Improved Signal Interpreter > --- WEAPON ----------- Advanced Beam Rifle Beamcaster Phase Cannon > --- INVENTORY -------- Light Angular Momentum Engine VSS Leg VSS Leg VSS Leg VSS Leg High-capacity Storage Unit Weapon Cycler Improved Weapon Shielding Improved Medium Armor Plating Graphene Brace Beam Rifle Phase Cannon Heavy Missile Launcher Improved Datajack Chainsword [Rating: 56] Favorites ----------- Power Improved Ion Engine Engine Improved Ion Engine Power Core Micro Nuclear Core Propulsion VSS Leg Treads Improved Treads Leg VSS Leg Utility Large Storage Unit Device Seismic Detector Storage Large Storage Unit Processor Improved Signal Interpreter Hackware Authchip [Weapon] Protection Improved Medium Armor Plating Weapon Beam Cannon Energy Gun Beam Rifle Energy Cannon Beam Cannon Ballistic Gun Light Assault Rifle Ballistic Cannon Heavy Assault Cannon Launcher Advanced EMP Blaster Special Weapon Mining Laser Slashing Weapon Axe Special Melee Weapon Datajack Build | -11 -10 -10 -10 -9 -8 -7 -7 ------- Run | Yrd Mat Min Exi Min Mat Fac Low Slots Evolved 6 | . . . . . 4 2 . Power 1 | . . . . . . 1 . Propulsion 2 | . . . . . 2 . . Utility 2 | . . . . . 1 1 . Weapon 1 | . . . . . 1 . . Parts Attached 92 | 8 12 3 1 5 49 14 . Power 13 | 2 1 1 . . 6 3 . Engine 8 | 2 1 1 . . 3 1 . Core 5 | . . . . . 3 2 . Reactor . | . . . . . . . . Propulsion 30 | 2 3 2 . 4 18 1 . Treads 4 | . . 2 . 2 . . . Leg 26 | 2 3 . . 2 18 1 . Wheel . | . . . . . . . . Hover . | . . . . . . . . Flight . | . . . . . . . . Utility 22 | 2 5 . . 1 9 5 . Device 9 | 1 2 . . 1 2 3 . Storage 5 | 1 2 . . . 2 . . Processor 1 | . . . . . 1 . . Hackware 2 | . . . . . 1 1 . Protection 5 | . 1 . . . 3 1 . Artifact . | . . . . . . . . Weapon 27 | 2 3 . 1 . 16 5 . Energy Gun 12 | 1 . . . . 10 1 . Energy Cannon 5 | . 2 . . . 1 2 . Ballistic Gun 1 | 1 . . . . . . . Ballistic Cannon 2 | . . . . . 2 . . Launcher 1 | . . . . . 1 . . Special Weapon 1 | . 1 . . . . . . Impact Weapon . | . . . . . . . . Slashing Weapon 3 | . . . . . 2 1 . Piercing Weapon . | . . . . . . . . Special Melee Weapon 2 | . . . 1 . . 1 . Unidentified Prototypes 4 | . . . . 1 3 . . Parts Lost 12 | . . 1 . . 7 4 . Power 3 | . . 1 . . 2 . . Propulsion 3 | . . . . . 3 . . Utility 2 | . . . . . . 2 . Weapon 4 | . . . . . 2 2 . Highest Loss Streak 2 | . . 1 . . 2 1 . To Critical Strikes . | . . . . . . . . Average Backups 13 | 1 11 14 14 14 14 13 5 Power . | . 1 . . 1 . . . Propulsion 4 | . 3 5 5 4 4 3 . Utility 4 | . 3 5 5 5 4 5 2 Weapon 2 | . 2 2 2 2 3 3 3 Tool/Special . | . . . . . . . . Unused Backups 25 | . 1 . . . 10 9 5 Power 3 | . . . . . 3 . . Propulsion 4 | . . . . . 2 2 . Utility 9 | . . . . . 4 3 2 Weapon 9 | . 1 . . . 1 4 3 Tool/Special . | . . . . . . . . Average Slot Usage (%) 97 | . 99 100 100 99 95 91 . Engine 10 | . 14 14 14 14 7 1 . Core 2 | . . . . . 1 12 . Treads 9 | . . 20 28 24 . . . Leg 20 | . 28 7 . 3 35 27 . Device 12 | . 13 12 14 13 10 11 . Storage 11 | . 14 14 14 14 9 6 . Processor 2 | . . . . . 5 6 . Protection 1 | . . 1 . . 1 1 . Energy Gun 7 | . . . . . 18 16 . Energy Cannon 16 | . 26 28 21 28 2 3 . Peak Build Rating 56 | 7 8 11 12 20 46 56 2 Average Rating 22 | 3 7 10 11 11 36 45 2 On Entrance 12 | . 7 8 11 12 13 43 2 Naked Turns 120 | . . . . . . 119 1 Heaviest Build 58 | 11 30 36 34 34 53 58 . Greatest Support 65 | 20 20 46 46 46 65 48 3 Greatest Overweight (x) 1 | . 1 1 . 1 1 1 . Average Overweight (x) . | . . . . . . . . Largest Inventory Capacity 15 | 8 15 15 15 15 15 15 5 Average Capacity 14 | 5 12 15 15 15 15 14 5 Most Carried 15 | 5 15 15 15 15 15 15 5 Average Carried 13 | 1 11 14 14 14 14 13 5 Final Capacity 15 | 8 15 15 15 15 15 5 5 Final Carried 15 | 4 15 14 14 15 15 5 5 Class Distribution -------------------- 63% | Mutant 17% | Skirmisher 6% | Scavenger-Skirmisher 3% | Scavenger-Mutant 3% | Tank 3% | Scavenger-Gunner Dominant Class ---------------- Mutant | -10/Materials Mutant | -10/Mines Mutant | -10/Exiles Mutant | -9/Mines Skirmisher | -8/Materials Skirmisher | -7/Factory Skirmisher | -7/Lower Caves Resources | -11 -10 -10 -10 -9 -8 -7 -7 ----------- Run | Yrd Mat Min Exi Min Mat Fac Low Matter Collected 2458 | 268 290 130 10 70 1222 468 . Remotely . | . . . . . . . . Salvage Created 4079 | 176 512 134 . 76 1808 1373 . Parts 211 | 17 36 15 . 4 90 49 . Haulers Intercepted 7 | . 2 . . . 5 . . Recyclers Shooed 3 | . 2 . . . 1 . . Parts Field Recycled . | . . . . . . . . Retrieved Matter . | . . . . . . . . Parts Self-Destructed . | . . . . . . . . Prevented . | . . . . . . . . Kills | -11 -10 -10 -10 -9 -8 -7 -7 ------- Run | Yrd Mat Min Exi Min Mat Fac Low Combat Hostiles Destroyed 68 | . 10 8 . . 24 26 . Guns 28 | . . . . . 15 13 . Cannons 32 | . 9 8 . . 7 8 . AOE 3 | . . . . . . 3 . Classes Destroyed 16 | 2 5 2 . . 6 1 . Worker 12 | . . 2 . 1 8 1 . Tunneler 5 | 4 . . . . . 1 . Hauler 7 | . 2 . . . 5 . . Recycler 4 | 1 1 . . . 2 . . Operator 3 | . 2 . . . . 1 . Watcher 7 | . 3 . . . 3 1 . Swarmer 15 | . 5 7 . . . 3 . Grunt 27 | . 5 . . . 12 10 . Brawler 3 | . . . . . 1 2 . Duelist 1 | . . . . . 1 . . Sentry 11 | . . . . . 6 5 . Demolisher 1 | . . 1 . . . . . Specialist 2 | . . . . . 2 . . Hunter 3 | . . . . . 2 1 . Programmer 5 | . . . . . . 5 . Heavy 1 | . . . . . 1 . . Thug 1 | . . . . 1 . . . Best Kill Streak 7 | 4 7 4 . 1 6 6 . Combat Bots Only 6 | . 3 3 . . 6 6 . Max Kills in Single Turn 3 | 1 1 2 . 1 2 3 . Gunslinging . | . . . . . . . . Exploded 3 | . . . . . . 3 . Melee . | . . . . . . . . Uniques/NPCs Destroyed . | . . . . . . . . Combat | -11 -10 -10 -10 -9 -8 -7 -7 -------- Run | Yrd Mat Min Exi Min Mat Fac Low Hostile Shots Fired 412 | . 29 40 . 2 104 236 1 Missed 136 | . 4 7 . 1 31 93 . Hits 276 | . 25 33 . 1 73 143 1 Melee 8 | . . . . . 3 5 . Projectile 268 | . 25 33 . 1 70 138 1 AOE 3 | . . 3 . . . . . Critical Strikes 7 | . . . . . 4 3 . Part Disruptions 1 | . . . . . . 1 . Damage Taken 3942 | . 235 372 . 14 1424 1883 14 Core 854 | . 39 34 . . 78 689 14 Absorbed by Shields . | . . . . . . . . Ignored by Resistances 99 | . . . . . 99 . . Regen/Repaired (Parts) 122 | . 87 . . . 35 . . Core Remaining (%) 85 | 100 . . . 70 85 . . Volleys Fired 277 | 18 51 18 5 3 111 71 . Largest 3 | 2 2 2 2 2 3 3 . Hottest 245 | 60 120 120 120 120 196 245 . Shots Fired 596 | 36 91 36 10 6 221 196 . Gun 349 | 36 . . . . 176 137 . Cannon 237 | . 81 36 10 6 45 59 . Launcher . | . . . . . . . . Special 10 | . 10 . . . . . . Kinetic 52 | 18 . . . . 34 . . Thermal 544 | 18 91 36 10 6 187 196 . Explosive . | . . . . . . . . Electromagnetic . | . . . . . . . . Robot Hit Streak 17 | 5 8 7 . 7 10 17 . Robot Miss Streak 6 | 4 3 4 . . 5 6 . Penetration Max . | . . . . . . . . Secondary Targets 4 | . . . . . 3 1 . Max Gunslinging Chain 1 | . . . . . 1 1 . Shots Hit Robots 358 | 17 48 18 17 5 135 118 . Core Hits 150 | 6 18 8 . 3 64 51 . Critical Kills 2 | . 1 . . . . 1 . Critical Parts Destroyed . | . . . . . . . . Critical Strikes 20 | . 1 . . . 8 11 . Burn 17 | . . . . . 7 10 . Meltdown 2 | . 1 . . . . 1 . Blast 1 | . . . . . 1 . . Melee Attacks 26 | . . . 17 . 5 4 . Impact . | . . . . . . . . Slashing 7 | . . . . . 5 2 . Piercing . | . . . . . . . . Sneak Attacks 20 | . . . 17 . 1 2 . Combat Hostiles . | . . . . . . . . Follow-up Attacks . | . . . . . . . . Damage Inflicted 7892 | 173 845 402 . 88 3242 3142 . Guns 3698 | 173 . . . . 1969 1556 . Cannons 3694 | . 845 386 . 88 1202 1173 . Explosions 407 | . . . . . . 407 . Melee 59 | . . . . . 59 . . Ramming 34 | . . 16 . . 12 6 . Kinetic 1123 | 64 . . . . 1059 . . Thermal 6562 | 109 845 386 . 88 2112 3022 . Explosive 46 | . . . . . . 46 . Electromagnetic 68 | . . . . . . 68 . Impact . | . . . . . . . . Slashing 59 | . . . . . 59 . . Piercing . | . . . . . . . . Highest Corruption 5 | . . . . . . 5 5 Average Corruption 3 | . . . . . . 3 5 Corruption Purged . | . . . . . . . . Corruption Blocked . | . . . . . . . . Effects 23 | . . . . . . 23 . Message Errors 5 | . . . . . . 5 . Matter Fused 4 | . . . . . . 4 . Heat Flow Errors 3 | . . . . . . 3 . Energy Discharges 4 | . . . . . . 4 . Parts Rejected 1 | . . . . . . 1 . Parts Fused 1 | . . . . . . 1 . Data Loss (major) 1 | . . . . . . 1 . Misfires 1 | . . . . . . 1 . Alerts 1 | . . . . . . 1 . Weapon Failures 2 | . . . . . . 2 . Overload Shots . | . . . . . . . . Overflow Damage 228 | . 15 30 . . 88 95 . Projectiles 169 | . 15 30 . . 88 36 . Explosions 59 | . . . . . . 59 . Melee . | . . . . . . . . Knockbacks 6 | . . . . . 6 . . Impact . | . . . . . . . . Kinetic 6 | . . . . . 6 . . Secondary . | . . . . . . . . Self-Inflicted Damage 79 | . . . . . . 79 . Shots 2 | . . . . . . 2 . Rammed 1 | . . 1 . . . . . Targets Rammed 3 | . . 1 . . 1 1 . Kicked 2 | . . . . . 1 1 . Crushed . | . . . . . . . . Highest Temperature 509 | 20 192 342 98 72 264 509 . Average Temperature 89 | 9 52 126 47 35 76 129 . Received Heat Transfer 987 | . 45 6 . 9 441 486 . Effects 10 | . . 2 . . 1 7 . Shutdowns 2 | . . . . . . 2 . Energy Bleed 1 | . . . . . . 1 . Interference 3 | . . 2 . . 1 . . Matter Decay 2 | . . . . . . 2 . Damage (minor) 2 | . . . . . . 2 . Siege Activations . | . . . . . . . . Martial Activations . | . . . . . . . . Shielding Activations . | . . . . . . . . Robots Disrupted . | . . . . . . . . Combat Hostiles . | . . . . . . . . Robots Corrupted . | . . . . . . . . Combat Hostiles . | . . . . . . . . Parts Fried . | . . . . . . . . Impact Corruptions . | . . . . . . . . Robots Melted 6 | . 1 . . . 3 2 . Combat Hostiles 5 | . 1 . . . 2 2 . Parts Melted 36 | . 3 1 . . 7 25 . Heat Transferred 13286 | 250 1776 777 . 185 5029 5269 . Parts Sabotaged . | . . . . . . . . Parts Stolen . | . . . . . . . . Parts Stripped . | . . . . . . . . Power Chain Reactions . | . . . . . . . . Alert | -11 -10 -10 -10 -9 -8 -7 -7 ------- Run | Yrd Mat Min Exi Min Mat Fac Low Maximum Alert Level 3 | . . . . . 1 3 . Low Security (%) 84 | 100 100 100 . 100 74 56 . Level 1 8 | . . . . . 25 10 . Level 2 5 | . . . . . . 28 . Level 3 1 | . . . . . . 5 . Level 4 . | . . . . . . . . Level 5 . | . . . . . . . . High Security . | . . . . . . . . Max Security . | . . . . . . . . Peak Influence 782 | 15 122 172 . 6 285 782 . Initial 11 | . . . . . . 11 . Average 93 | 3 20 26 . . 109 271 . Influence Increases 2928 | 25 363 313 . 6 974 1247 . Destroy 0b10 Robot/C 1480 | . 200 200 . . 500 580 . Destroy 0b10 Robot/NC 200 | 25 40 10 . 5 95 25 . Destroy Leader 430 | . 60 40 . . 168 162 . Allied During Kill 61 | . . 22 . 1 32 6 . Successful Hack 142 | . 26 . . . 53 63 . Disable Machine 210 | . 15 15 . . 30 150 . Destroy Structure 105 | . 7 11 . . 21 66 . Lose Combat Pursuer 300 | . 15 15 . . 75 195 . Influence Decreases 2436 | 25 363 161 152 6 947 492 290 Entered New Map 458 | . . . 152 . . 16 290 Time Decay 1501 | 25 353 161 . 6 540 416 . Lost Part 110 | . . . . . 70 40 . Lost Ally 94 | . 10 . . . 64 20 . Purge Threat 273 | . . . . . 273 . . Squads Dispatched 22 | . 2 . . . 4 16 . Investigation 5 | . . . . . 2 3 . Extermination 4 | . . . . . . 4 . Reinforcement 7 | . 2 . . . 2 3 . Assault 1 | . . . . . . 1 . Garrison 5 | . . . . . . 5 . Intercept . | . . . . . . . . Searches Triggered . | . . . . . . . . Construction Impeded 1 | . . . . . . 1 . Haulers Reinforced . | . . . . . . . . Active Scanning Responses . | . . . . . . . . Cargo Convoy Interrupts . | . . . . . . . . Stealth | -11 -10 -10 -10 -9 -8 -7 -7 --------- Run | Yrd Mat Min Exi Min Mat Fac Low Distress Signals 15 | . 2 . . . 7 6 . Communications Jammed . | . . . . . . . . Distress Signals . | . . . . . . . . Times Spotted 134 | . 19 11 . 2 41 58 3 Peak Tracking Total 9 | . 4 3 9 2 6 9 3 Tactical Retreats 13 | . 1 1 . . 5 6 . Traps | -11 -10 -10 -10 -9 -8 -7 -7 ------- Run | Yrd Mat Min Exi Min Mat Fac Low Traps Triggered 6 | . . . . . 3 3 . Indirectly . | . . . . . . . . Trap Hack Attempts . | . . . . . . . . Triggered . | . . . . . . . . Disarmed . | . . . . . . . . Reprogrammed . | . . . . . . . . Reused . | . . . . . . . . Traps Extracted . | . . . . . . . . Installed . | . . . . . . . . Triggered . | . . . . . . . . Machines | -11 -10 -10 -10 -9 -8 -7 -7 ---------- Run | Yrd Mat Min Exi Min Mat Fac Low Machines Disabled 18 | . 1 1 4 . 2 10 . Max in Single Turn 2 | . 1 1 1 . 1 2 . Machines Repaired . | . . . . . . . . Machines Dismantled . | . . . . . . . . Machines Sabotaged . | . . . . . . . . Overloaded Fab Kills . | . . . . . . . . Hacking | -11 -10 -10 -10 -9 -8 -7 -7 --------- Run | Yrd Mat Min Exi Min Mat Fac Low Machines Accessed 43 | . 8 . 2 . 16 17 . Terminals 25 | . 6 . . . 11 8 . Fabricators 3 | . . . . . . 3 . Repair Stations 5 | . 1 . . . 1 3 . Recycling Units 4 | . 1 . . . 2 1 . Scanalyzers 3 | . . . . . 2 1 . Garrison Access 1 | . . . . . . 1 . Total Hacks 136 | . 26 . 2 . 68 40 . Successful 75 | . 17 . 2 . 42 14 . Failed 61 | . 9 . . . 26 26 . Catastrophic 16 | . 1 . . . 6 9 . Database Lockouts . | . . . . . . . . Manual 60 | . 14 . 1 . 32 13 . Terminals 84 | . 18 . . . 47 19 . Fabricators 9 | . . . . . . 9 . Repair Stations 14 | . 5 . . . 2 7 . Recycling Units 8 | . 3 . . . 3 2 . Scanalyzers 18 | . . . . . 16 2 . Garrison Access 1 | . . . . . . 1 . Terminal Hacks 30 | . 7 . 2 . 17 4 . Record 1 | . . . 1 . . . . Part Schematic 3 | . 1 . . . 1 1 . Robot Analysis 4 | . 1 . . . 3 . . Prototype ID Bank 6 | . 2 . . . 3 1 . Level Access Points 1 | . . . . . 1 . . Terminal Index 2 | . 1 . . . 1 . . Alert Level 1 | . . . . . 1 . . Unreport Threat 2 | . . . . . 2 . . Locate Traps 4 | . 2 . . . 1 1 . Hauler Manifests 2 | . . . . . 2 . . Registered Components 2 | . . . . . 1 1 . Zone Layout 1 | . . . . . 1 . . Proto ID Catalog 1 | . . . 1 . . . . Fabricator Hacks 4 | . . . . . . 4 . Network Status 1 | . . . . . . 1 . Load Schematic 2 | . . . . . . 2 . Build 1 | . . . . . . 1 . Repair Station Hacks 7 | . 4 . . . 2 1 . Scan Component 4 | . 2 . . . 1 1 . Repair 3 | . 2 . . . 1 . . Recycling Unit Hacks 1 | . . . . . 1 . . Retrieve Components 1 | . . . . . 1 . . Scanalyzer 14 | . . . . . 13 1 . Insert Component 7 | . . . . . 6 1 . Analyze 7 | . . . . . 7 . . Garrison Access Hacks . | . . . . . . . . Unauthorized Hacks 19 | . 6 . . . 9 4 . Terminals 15 | . 4 . . . 8 3 . Track 4 | . . . . . 4 . . Assimilate 2 | . 1 . . . . 1 . Botnet 7 | . 2 . . . 3 2 . Operators 2 | . 1 . . . 1 . . Fabricators 1 | . . . . . . 1 . Recompile 1 | . . . . . . 1 . Repair Stations . | . . . . . . . . Recycling Units 3 | . 2 . . . 1 . . Reject 2 | . 1 . . . 1 . . Recyclers 1 | . 1 . . . . . . Scanalyzers . | . . . . . . . . Garrison Access . | . . . . . . . . Data Cores Recovered . | . . . . . . . . Used . | . . . . . . . . Hacking Detections 39 | . 8 . . . 15 16 . Full Trace Events 4 | . 1 . . . 1 2 . Feedback Events . | . . . . . . . . Feedback Blocked . | . . . . . . . . Robot Schematics Acquired . | . . . . . . . . Robots Built . | . . . . . . . . Authchips . | . . . . . . . . Time . | . . . . . . . . Total Robot Build Rating . | . . . . . . . . Part Schematics Acquired 8 | . 1 . . . 6 1 . Parts Built 2 | . . . . . . 2 . Authchips . | . . . . . . . . Time 47 | . . . . . . 47 . Total Part Build Rating 10 | . . . . . . 10 . Parts Repaired 3 | . 2 . . . 1 . . Time 102 | . 52 . . . 50 . . Parts Recycled . | . . . . . . . . Recycled Matter . | . . . . . . . . Retrieved Matter . | . . . . . . . . Retrieved Components 9 | . . . . . 9 . . Parts Scanalyzed 6 | . . . . . 5 1 . Part Schematics Acquired 5 | . . . . . 5 . . Parts Damaged 1 | . . . . . . 1 . Bothacking | -11 -10 -10 -10 -9 -8 -7 -7 ------------ Run | Yrd Mat Min Exi Min Mat Fac Low Used RIF Installer . | . . . . . . . . Robots Hacked 5 | . . . 4 . . 1 . Non-combat 4 | . . . 3 . . 1 . Combat 1 | . . . 1 . . . . Robot Hacks Applied 19 | . . . 17 . . 2 . parse_system 18 | . . . 17 . . 1 . find_chute 1 | . . . . . . 1 . Relay Couplers Released . | . . . . . . . . Fabnet Peak Effective % . | . . . . . . . . Robots Rewired 1 | . . . . . . 1 . Allies Hacked . | . . . . . . . . Hacks Repelled . | . . . . . . . . Allies | -11 -10 -10 -10 -9 -8 -7 -7 -------- Run | Yrd Mat Min Exi Min Mat Fac Low Total Allies 8 | . 1 3 . 2 . 2 . Largest Group 5 | . 1 3 3 5 5 1 . Highest-Rated Group 85 | . 10 40 40 85 85 21 . Highest-Rated Ally 31 | . 10 16 16 31 31 21 . Total Orders 4 | . . . 1 . 3 . . STAY 3 | . . . 1 . 2 . . FOLLOW 1 | . . . . . 1 . . Ally Attacks 54 | . . 16 . 2 24 12 . Total Damage 816 | . . 125 . 10 349 332 . Kills 9 | . . 2 . . 2 5 . Allies Corrupted . | . . . . . . . . Allies Melted . | . . . . . . . . Intel | -11 -10 -10 -10 -9 -8 -7 -7 ------- Run | Yrd Mat Min Exi Min Mat Fac Low Active Infowar (turns) 7575 | 67 1445 1240 1009 1117 1682 1015 . Sensors 2224 | . . . . 1 1208 1015 . Seismic 5351 | 67 1445 1240 1009 1116 474 . . Robot Analysis Total 4 | . 1 . . . 3 . . Derelict Logs Recovered 2 | . . 1 . 1 . . . Drone Launches . | . . . . . . . . Drone Recoveries . | . . . . . . . . Exploration | -11 -10 -10 -10 -9 -8 -7 -7 ------------- Run | Yrd Mat Min Exi Min Mat Fac Low Turns Passed 9277 | 144 1781 1409 1009 1118 2116 1699 1 Spaces Moved 5496 | 99 751 702 591 667 1338 1347 1 Core 288 | 61 . . . . . 226 1 Treads 1774 | . . 584 591 599 . . . Legs 3434 | 38 751 118 . 68 1338 1121 . Wheels . | . . . . . . . . Hover . | . . . . . . . . Flight . | . . . . . . . . Fastest Speed 50 | 50 120 160 160 160 90 50 50 Average Speed 126 | 76 147 165 160 163 99 92 50 Slowest Speed 190 | 120 190 190 160 190 190 180 50 Overloaded Moves . | . . . . . . . . Propulsion Burnouts . | . . . . . . . . Robots Hopped . | . . . . . . . . Potential Cave-ins . | . . . . . . . . Cave-ins Triggered . | . . . . . . . . Exploration Rate (%) 62 | 3 95 98 71 99 91 44 2 Regions Visited 7 Branch Regions 4 Pre-discovered Areas 2 | . . 1 1 . . . . Known Exits Taken 2 | . . . . . 1 1 . Unknown Exits Taken 5 | 1 1 1 1 1 . . . Scrap Searched 4 | . . 2 . 2 . . . Spaces Dug 14 | . 6 . . . 5 3 . Terrain Destroyed 113 | . 8 11 . . 20 74 . Melee 6 | . . . . . 4 2 . Projectile 38 | . 8 . . . 16 14 . AOE 69 | . . 11 . . . 58 . Terrain Rammed . | . . . . . . . . Walls Destroyed . | . . . . . . . . Machines Disabled . | . . . . . . . . Actions | -11 -10 -10 -10 -9 -8 -7 -7 --------- Run | Yrd Mat Min Exi Min Mat Fac Low Total 7226 | 132 1306 913 636 693 1897 1648 1 Wait 1044 | . 454 180 20 7 246 137 . Move 5489 | 98 750 701 590 666 1337 1346 1 Hop . | . . . . . . . . Pick Up 81 | 7 12 2 1 4 39 16 . Fast Attach 38 | 5 3 . . 2 17 11 . Attach 25 | 2 . 1 . 2 12 8 . Detach 10 | . . . . 1 2 7 . Swap 136 | 1 27 8 2 3 70 25 . Drop 96 | 1 9 2 1 5 57 21 . Fire 277 | 18 51 18 5 3 111 71 . Melee 26 | . . . 17 . 5 4 . Ram . | . . . . . . . . Kick 2 | . . . . . 1 1 . Crush 1 | . . 1 . . . . . Escape Stasis . | . . . . . . . . Rewire 1 | . . . . . . 1 . Trap . | . . . . . . . . Miscellaneous . | . . . . . . . . Route ------- -11/Scrapyard -10/Materials (discovered 4 exits: [*Mat x3] / [*Min]) -10/Mines (discovered 4 exits: [*Mat x2] / *Exi / [*Sub]) -10/Exiles (discovered 2 exits: [*Min x2]) -9/Mines (discovered 2 exits: *Mat x2) -8/Materials (discovered 3 exits: *Fac x3) -7/Factory (discovered 2 exits: *Low x2) -7/Lower Caves History --------- Turn | Location | Event 9 | -11/Scrapyard | Discovered new exit (range 12) 145 | -11/Scrapyard | Entered Materials 220 | -10/Materials | Discovered new exit (range 15) 306 | -10/Materials | Build established: Mutant 433 | -10/Materials | Discovered new exit (range 15) 927 | -10/Materials | Discovered new exit (range 9) 1216 | -10/Materials | Discovered new exit (range 14) 1726 | -10/Materials | Repaired Beam Cannon 1753 | -10/Materials | Repaired Beam Cannon 1926 | -10/Materials | Entered Mines 1942 | -10/Mines | Assembled infested the area 1947 | -10/Mines | Assisted by a Guerilla fighting off Assembled 2298 | -10/Mines | Discovered new exit (range 13) 2666 | -10/Mines | Assisted by bots powering up and referring to "LRC-V3" 2763 | -10/Mines | Learned location of Storage (-9) 2800 | -10/Mines | Deemed a non-threat by the Exiles lab entrance 2800 | -10/Mines | Discovered new exit (range 5) 2820 | -10/Mines | Discovered new exit (range 7) 3069 | -10/Mines | Discovered new exit (range 11) 3335 | -10/Mines | Entered Exiles 3335 | -10/Exiles | Accompanied by 3 allies 3356 | -10/Exiles | Discovered new exit (range 15) 3383 | -10/Exiles | Met 8R-AWN 3405 | -10/Exiles | Met EX-HEX 3477 | -10/Exiles | Met EX-DEC 3484 | -10/Exiles | Learned location of Zion (-6) 3509 | -10/Exiles | Met EX-BIN 3532 | -10/Exiles | Aligned with FarCom system 3533 | -10/Exiles | Given EX-Vault access code 3570 | -10/Exiles | Opened EX-Vault 3774 | -10/Exiles | Warned to stay clear of 0b10 Research branches 4246 | -10/Exiles | Discovered new exit (range 14) 4317 | -10/Exiles | Attacked by the Exiles 4344 | -10/Exiles | Entered Mines 4344 | -9/Mines | Accompanied by 3 allies 4544 | -9/Mines | Found a damaged Exp. Sensor Array with a note attached 4548 | -9/Mines | Found Prototype Device 4548 | -9/Mines | Identified Exp. Sensor Array 4561 | -9/Mines | Discovered new exit (range 14) 4604 | -9/Mines | Learned Materials emergency access door positions 4652 | -9/Mines | Joined a pair of Derelicts in attacking an 0b10 outpost 5074 | -9/Mines | Discovered new exit (range 3) 5462 | -9/Mines | Entered Materials 5462 | -8/Materials | Accompanied by 5 allies 5462 | -8/Materials | Evolved 4 slots: Propulsion x2, Utility x1, Weapon x1 5467 | -8/Materials | Led the pair of lost Derelicts to an unsafe place 5649 | -8/Materials | Identified exit to Factory 6762 | -8/Materials | Repaired Beamcaster 7066 | -8/Materials | Build established: Scavenger-Skirmisher 7401 | -8/Materials | Build established: Skirmisher 7578 | -8/Materials | Entered Factory 7578 | -7/Factory | Evolved 2 slots: Power x1, Utility x1 7801 | -7/Factory | Discovered new exit (range 7) 7805 | -7/Factory | Identified exit to Lower Caves 7914 | -7/Factory | Garrison activated, responded to threat 8164 | -7/Factory | Fabricated Phase Cannon (x2) 8778 | -7/Factory | First assault squad dispatched 9147 | -7/Factory | Garrison activated, responded to threat 9153 | -7/Factory | Released all parts (12) 9166 | -7/Factory | Core integrity fell below 50% 9213 | -7/Factory | Allied Derelicts emerged from ambush trap array 9230 | -7/Factory | Core integrity fell below 20% 9258 | -7/Factory | Discovered exit to Lower Caves (range 15) 9260 | -7/Factory | Lost 3 allies 9277 | -7/Factory | Entered Lower Caves 9278 | -7/Lower Caves | Destroyed by S-27 Virus with Autogun Last Messages --------------- our attack, but seeing as you've already triggered the mechanism and given away our position, let's roll with it." 09217_ L-41 Fighter suffers critical hit (Burn). 09227_ K9-FB1(g) triggered Blade Trap. 09227_ Massive razor-sharp blades shoot up from within the floor. 09227_ Carbon-fiber Leg severed. 09229_ Fusion Modulator explodes. 09229_ 4H-UMH(g) destroyed. 09229_ K9-FB1(g) destroyed. 09229_ Fusion Modulator explodes. 09229_ 36-YZA(g) destroyed. 09229_ L-41 Fighter destroyed. 09229_ K-01 Serf cleans the Repair Station. 09230_ Critical hit (Burn: +37). 09255_ System corrupted: Matter fused (-8). 09258_ EXIT=FOUND: LOWER CAVES LOCATION=LOWER CAVES GOAL=ESCAPE Map ----- +----------------------------------------------------+ | ?????????????????????????????????????????????????? | | ?????????????????????????????????????????????????? | | ?????????????????????????????????????????????????? | | ?????????????????????????????????????????????????? | | ?????????????????????????????????????????????????? | | ?????????????????????????????????????????????????? | | ?????????????????????????????????????????????????? | | ?????????????????????????????????????????????????? | | ?????????????????????????????????????????????????? | | ?????????????????????????????????????????????????? | | ?????????????????????????????????????????????????? | | ?????????????????????????????????????????????????? | | ?????????????????????????????????????????????????? | | ?????????????????????????????????????????????????? | | ?????????????????????????????????????????????????? | | ?????????????????????????????????????????????????? | | ????????????????????????#########????????????????? | | ????????????????????????# #????????????????? | | ????????????????????????# #????????????????? | | ????????????????????????# #????????????????? | | ????????????????????????# #????????????????? | | ????????????????????????# Y s$ #????????????????? | | ????????????????????????# #????????????????? | | ???????????????????????## s#????????????????? | | ??????????????????????## ##????????????????? | | ??????????????????????# @ #????????????????? | | ??????????????????????## ## #????????????????? | | ???????????????????????## ##???#????????????????? | | ????????????????????????# #?????????????????????? | | ????????????????????????# #?????????????????????? | | ???????????????????????? ?????????????????????? | | ???????????????????????? ?????????????????????? | | ????????????????????????# ##????????????????????? | | ???????????????????????? #?????????????????????? | | ????????????????????????## ?????????????????????? | | ?????????????????????????? ?????????????????????? | | ??????????????????????????##?????????????????????? | | ?????????????????????????????????????????????????? | | ?????????????????????????????????????????????????? | | ?????????????????????????????????????????????????? | | ?????????????????????????????????????????????????? | | ?????????????????????????????????????????????????? | | ?????????????????????????????????????????????????? | | ?????????????????????????????????????????????????? | | ?????????????????????????????????????????????????? | | ?????????????????????????????????????????????????? | | ?????????????????????????????????????????????????? | | ?????????????????????????????????????????????????? | | ?????????????????????????????????????????????????? | | ?????????????????????????????????????????????????? | +----------------------------------------------------+ Best States ------------- Heat Dissipation 61 Coolant Potential 65 Energy Generation 28 Energy Capacity 265 Matter Stores 300 Matter Capacity 300 Sight Range 16 Robot Scan Range 20 Terrain Scan Density 10 Armor Coverage 225 Resistance: KI 20 Weapon Cycling 15 Evasion (%) 57 Recoil Reduction 2 Authchip Count 1 Item Schematics ----------------- Hcp. Storage Unit | -10/Materials | Hacked Graphene Brace | -8/Materials | Scanalyzed Imp. Medium Armor Plating | -8/Materials | Scanalyzed Imp. Weapon Shielding | -8/Materials | Scanalyzed Beamcaster | -8/Materials | Scanalyzed Lgt. Angular Momentum Engine | -8/Materials | Scanalyzed Cryofiber Web | -8/Materials | Hacked Mic. Fission Core | -7/Factory | Hacked Robot Schematics ------------------ None Fabricated ------------ Phase Cannon | x2 | -7/Factory | Preloaded Repaired ---------- Beam Cannon | 58% | -10/Materials Beam Cannon | 55% | -10/Materials Beamcaster | 61% | -8/Materials Alien Tech Used ----------------- None Achievements -------------- None Challenges ------------ None Game ------ Seed JammingGuidanceCompanion Manual? 0 Play Time 01:44:50 Cumulative 316.8 hours Start 2025.09.10 @ 20:22:45 End 2025.09.10 @ 23:01:38 Sessions 1 Manual Loads 0 Difficulty Rogue Special Mode None Game No. 220 Rogue 220 Adventurer 0 Explorer 0 Win Type - Total 3 Types 3/0/0/0/0/0/0/0/0/0 Lore% 75 Gallery% 75 Achievement% 63 Wizard Run 0 Options --------- Layout 1 ASCII 0 Keyboard 0 Movement Mouse Keybinds 0 Fullscreen 1 Font 32/SmallcapsGlow Map View 50x35 Zoom Use 0% Tactical HUD 1 Map Filters NONE Filters NONE Steam 1 RUN: ea7b958f-1138-48c9-9c67-5869cfc8dc29